fUST/lending_fUST_20250103
["ID","MTS","AMOUNT","RATE_DAILY","PERIOD"]
[347554782,1735915841357,-1201.49,0.00019178,2]
[347554784,1735915841366,-500.0,0.00019178,2]
[347554786,1735915841376,-500.0,0.00019178,2]
[347554788,1735915841385,-500.0,0.00019178,2]
[347554790,1735915841394,-500.0,0.00019178,2]
[347554792,1735915841403,-522.18235512,0.00019178,2]
[347554794,1735915841412,-500.0,0.00019178,2]
[347554796,1735915841421,-500.0,0.00019178,2]
[347554798,1735915841431,-500.0,0.00019178,2]
[347554800,1735915841440,-500.0,0.00019178,2]
[347554802,1735915841450,-1132.11,0.00019178,2]
[347554805,1735915841461,-500.0,0.00019178,2]
[347554807,1735915841471,-500.0,0.00019178,2]
[347554808,1735915841480,-500.0,0.00019178,2]
[347554810,1735915841490,-500.0,0.00019178,2]
[347554812,1735915841499,-501.82365361,0.00019178,2]
[347554814,1735915841508,-500.0,0.00019178,2]
[347554817,1735915841518,-323.75931422,0.00019178,2]
[347554819,1735915841527,-1359.76,0.00019178,2]
[347554820,1735915841536,-543.8,0.00019178,2]
[347554822,1735915841546,-500.0,0.00019178,2]
[347554825,1735915841555,-500.0,0.00019178,2]
[347554827,1735915841565,-500.0,0.00019178,2]
[347554829,1735915841575,-646.49,0.00019178,2]
[347554831,1735915841584,-500.0,0.00019178,2]
[347554833,1735915841593,-500.0,0.00019178,2]
[347554835,1735915841602,-500.0,0.00019178,2]
[347554837,1735915841612,-500.0,0.00019178,2]
[347554839,1735915841621,-500.0,0.00019178,2]
[347554841,1735915841631,-500.0,0.00019178,2]
[347554843,1735915841641,-500.0,0.00019178,2]
[347554844,1735915841649,-500.0,0.00019178,2]
[347554845,1735915841658,-654.22,0.00019178,2]
[347554846,1735915841667,-1308.75,0.00019178,2]
[347554847,1735915841676,-500.0,0.00019178,2]
[347554849,1735915841686,-530.40897516,0.00019178,2]
[347554851,1735915841696,-500.0,0.00019178,2]
[347554853,1735915841705,-580.75,0.00019178,2]
[347554855,1735915841716,-500.0,0.00019178,2]
[347554857,1735915841725,-500.0,0.00019178,2]
[347554859,1735915841734,-500.0,0.00019178,2]
[347554861,1735915841743,-500.0,0.00019178,2]
[347554863,1735915841752,-500.0,0.00019178,2]
[347554865,1735915841762,-500.0,0.00019178,2]
[347554867,1735915841771,-334.13365012,0.00019178,2]
[347554868,1735915841781,-500.0,0.00019178,2]
[347554870,1735915841790,-500.0,0.00019178,2]
[347554872,1735915841800,-3366.88,0.00019178,2]
[347554874,1735915841810,-500.0,0.00019178,2]
[347554876,1735915841819,-500.0,0.00019178,2]
[347554878,1735915841829,-500.0,0.00019178,2]
[347554880,1735915841838,-500.0,0.00019178,2]
[347554882,1735915841847,-617.85879928,0.00019178,2]
[347554884,1735915841856,-507.18036495,0.00019178,2]
[347554886,1735915841865,-500.0,0.00019178,2]
[347554888,1735915841875,-789.41,0.00019178,2]
[347554890,1735915841884,-500.0,0.00019178,2]
[347554892,1735915841894,-637.63997765,0.00019178,2]
[347554894,1735915841904,-500.0,0.00019178,2]
[347554896,1735915841913,-500.0,0.00019178,2]
[347554898,1735915841922,-716.35,0.00019178,2]
[347554900,1735915841932,-500.0,0.00019178,2]
[347554902,1735915841941,-500.0,0.00019178,2]
[347554904,1735915841951,-500.0,0.00019178,2]
[347554906,1735915841962,-647.19,0.00019178,2]
[347554908,1735915841972,-500.0,0.00019178,2]
[347554910,1735915841981,-500.0,0.00019178,2]
[347554912,1735915841992,-500.0,0.00019178,2]
[347554913,1735915842002,-500.0,0.00019178,2]
[347554915,1735915842012,-500.0,0.00019178,2]
[347554917,1735915842021,-821.01,0.00019178,2]
[347554919,1735915842030,-1011.49,0.00019178,2]
[347554921,1735915842040,-500.0,0.00019178,2]
[347554923,1735915842051,-1753.55,0.00019178,2]
[347554925,1735915842060,-500.0,0.00019178,2]
[347554927,1735915842069,-601.51,0.00019178,2]
[347554929,1735915842079,-500.0,0.00019178,2]
[347554931,1735915842089,-500.0,0.00019178,2]
[347554933,1735915842100,-2773.03,0.00019178,2]
[347554935,1735915842110,-777.75,0.00019178,2]
[347554937,1735915842119,-500.0,0.00019178,2]
[347554939,1735915842128,-500.0,0.00019178,2]
[347554941,1735915842138,-500.0,0.00019178,2]
[347554943,1735915842147,-500.0,0.00019178,2]
[347554945,1735915842156,-500.0,0.00019178,2]
[347554947,1735915842167,-500.0,0.00019178,2]
[347554949,1735915842177,-499.40260275,0.00019178,2]
[347554951,1735915842186,-572.91,0.00019178,2]
[347554952,1735915842196,-739.31,0.00019178,2]
[347554954,1735915842206,-500.0,0.00019178,2]
[347554956,1735915842215,-500.0,0.00019178,2]
[347554958,1735915842225,-500.0,0.00019178,2]
[347554960,1735915842235,-500.0,0.00019178,2]
[347554962,1735915842244,-500.0,0.00019178,2]
[347554964,1735915842254,-500.0,0.00019178,2]
[347554966,1735915842264,-500.0,0.00019178,2]
[347554968,1735915842273,-500.0,0.00019178,2]
[347554970,1735915842283,-500.0,0.00019178,2]
[347554972,1735915842292,-500.0,0.00019178,2]
[347554974,1735915842301,-40420.84,0.00019178,2]
[347554976,1735915842310,-1307.86,0.00019178,2]
[347554978,1735915842320,-500.0,0.00019178,2]
[347554979,1735915842329,-500.0,0.00019178,2]
[347554981,1735915842339,-500.0,0.00019178,2]
[347554983,1735915842349,-500.0,0.00019178,2]
[347554985,1735915842358,-242.85073924,0.00019178,2]
[347554987,1735915842367,-500.0,0.00019178,2]
[347554989,1735915842377,-1544.34,0.00019178,2]
[347554991,1735915842387,-500.0,0.00019178,2]
[347554993,1735915842396,-500.0,0.00019178,2]
[347554995,1735915842406,-500.0,0.00019178,2]
[347554997,1735915842416,-500.0,0.00019178,2]
[347554999,1735915842427,-1605.51,0.00019178,2]
[347555001,1735915842438,-500.0,0.00019178,2]
[347555003,1735915842447,-553.12,0.00019178,2]
[347555005,1735915842458,-500.0,0.00019178,2]
[347555007,1735915842468,-3104.35,0.00019178,2]
[347555009,1735915842478,-500.0,0.00019178,2]
[347555011,1735915842487,-545.32,0.00019178,2]
[347555013,1735915842496,-196.55512591,0.00019178,2]
[347555014,1735915842506,-556.66,0.00019178,2]
[347555016,1735915842516,-500.0,0.00019178,2]
[347555018,1735915842525,-359.47777777,0.00019178,2]
[347555020,1735915842535,-500.0,0.00019178,2]
[347555022,1735915842545,-500.0,0.00019178,2]
[347555024,1735915842554,-500.0,0.00019178,2]
[347555026,1735915842564,-500.0,0.00019178,2]
[347555028,1735915842574,-500.0,0.00019178,2]
[347555030,1735915842584,-500.0,0.00019178,2]
[347555032,1735915842594,-4628.27,0.00019178,2]
[347555034,1735915842604,-500.0,0.00019178,2]
[347555036,1735915842614,-500.0,0.00019178,2]
[347555038,1735915842623,-500.0,0.00019178,2]
[347555040,1735915842633,-1177.5,0.00019178,2]
[347555042,1735915842645,-500.0,0.00019178,2]
[347555044,1735915842655,-1258.26,0.00019178,2]
[347555045,1735915842665,-1340.64,0.00019178,2]
[347555047,1735915842674,-504.12859687,0.00019178,2]
[347555049,1735915842684,-500.0,0.00019178,2]
[347555051,1735915842694,-500.0,0.00019178,2]
[347555053,1735915842704,-500.0,0.00019178,2]
[347555055,1735915842716,-531.60481692,0.00019178,2]
[347555057,1735915842726,-500.0,0.00019178,2]
[347555059,1735915842736,-500.0,0.00019178,2]
[347555061,1735915842746,-500.0,0.00019178,2]
[347555063,1735915842755,-500.0,0.00019178,2]
[347555065,1735915842765,-500.0,0.00019178,2]
[347555067,1735915842774,-513.64432613,0.00019178,2]
[347555069,1735915842783,-500.0,0.00019178,2]
[347555071,1735915842793,-500.0,0.00019178,2]
[347555072,1735915842803,-500.0,0.00019178,2]
[347555074,1735915842813,-500.0,0.00019178,2]
[347555076,1735915842823,-812.27,0.00019178,2]
[347555078,1735915842832,-500.0,0.00019178,2]
[347555080,1735915842842,-500.0,0.00019178,2]
[347555082,1735915842851,-5111.34,0.00019178,2]
[347555084,1735915842861,-1131.3,0.00019178,2]
[347555086,1735915842870,-500.0,0.00019178,2]
[347555087,1735915842880,-2965.34,0.00019178,2]
[347555089,1735915842890,-500.0,0.00019178,2]
[347555091,1735915842900,-500.0,0.00019178,2]
[347555093,1735915842910,-500.0,0.00019178,2]
[347555095,1735915842919,-500.0,0.00019178,2]
[347555097,1735915842930,-500.0,0.00019178,2]
[347555099,1735915842939,-500.0,0.00019178,2]
[347555101,1735915842949,-2581.28,0.00019178,2]
[347555102,1735915842960,-500.0,0.00019178,2]
[347555103,1735915842969,-500.0,0.00019178,2]
[347555105,1735915842979,-500.0,0.00019178,2]
[347555107,1735915842989,-1375.81,0.00019178,2]
[347555109,1735915842998,-666.78,0.00019178,2]
[347555111,1735915843008,-500.0,0.00019178,2]
[347555112,1735915843018,-500.0,0.00019178,2]
[347555114,1735915843028,-1116.34,0.00019178,2]
[347555116,1735915843038,-607.92,0.00019178,2]
[347555118,1735915843048,-500.0,0.00019178,2]
[347555120,1735915843057,-516.33222642,0.00019178,2]
[347555122,1735915843068,-500.0,0.00019178,2]
[347555124,1735915843078,-9652.64,0.00019178,2]
[347555126,1735915843091,-1621.74,0.00019178,2]
[347555128,1735915843106,-500.0,0.00019178,2]
[347555130,1735915843115,-500.0,0.00019178,2]
[347555132,1735915843125,-500.0,0.00019178,2]
[347555134,1735915843135,-1236.54,0.00019178,2]
[347555138,1735915843145,-500.0,0.00019178,2]
[347555142,1735915843154,-502.7,0.00019178,2]
[347555145,1735915843164,-500.0,0.00019178,2]
[347555148,1735915843176,-158.797415,0.00019178,2]
[347555151,1735915843188,-302.66710251,0.0001919,2]
[347555154,1735915843199,-1533.56,0.000192,2]
[347555157,1735915843211,-32481.02840047,0.00019352,2]
[347555160,1735915843221,-302.66710251,0.0001938,2]
[347555185,1735915843358,-151.0,0.000194,2]
[347555188,1735915843369,-500.0,0.00019447,2]
[347555191,1735915843380,-500.0,0.00019447,2]
[347555194,1735915843390,-181.0,0.00019447,2]
[347555197,1735915843401,-500.0,0.00019447,2]
[347555200,1735915843411,-608.0933036,0.00019447,2]
[347555203,1735915843421,-500.0,0.00019447,2]
[347555206,1735915843431,-500.0,0.00019447,2]
[347555209,1735915843440,-500.0,0.00019447,2]
[347555212,1735915843450,-500.0,0.00019447,2]
[347555214,1735915843462,-500.0,0.00019447,2]
[347555217,1735915843473,-500.0,0.00019447,2]
[347555220,1735915843483,-500.0,0.00019447,2]
[347555222,1735915843493,-500.0,0.00019447,2]
[347555224,1735915843503,-428.63004007,0.00019447,2]
[347555226,1735915843514,-500.0,0.00019447,2]
[347555229,1735915843523,-500.0,0.00019447,2]
[347555231,1735915843533,-500.0,0.00019447,2]
[347555234,1735915843543,-500.0,0.00019447,2]
[347555237,1735915843552,-500.0,0.00019447,2]
[347555240,1735915843562,-500.0,0.00019447,2]
[347555243,1735915843573,-395.16219209,0.00019447,2]
[347555244,1735915843583,-500.0,0.00019447,2]
[347555246,1735915843593,-377.74454161,0.00019447,2]
[347555248,1735915843603,-500.0,0.00019447,2]
[347555250,1735915843613,-500.0,0.00019447,2]
[347555252,1735915843622,-500.0,0.00019447,2]
[347555254,1735915843632,-237.607132,0.00019452,2]
[347555256,1735915843642,-237.607132,0.00019452,2]
[347555258,1735915843652,-500.0,0.00019452,3]
[347555260,1735915843662,-500.0,0.00019452,3]
[347555262,1735915843672,-500.0,0.00019452,3]
[347555264,1735915843681,-500.0,0.00019452,3]
[347555266,1735915843691,-500.0,0.00019452,3]
[347555268,1735915843700,-500.0,0.00019452,3]
[347555270,1735915843709,-7700.63,0.00019452,3]
[347555272,1735915843719,-500.0,0.00019452,3]
[347555274,1735915843728,-503.32122877,0.00019452,3]
[347555276,1735915843738,-500.0,0.00019452,3]
[347555278,1735915843748,-500.0,0.00019452,3]
[347555280,1735915843756,-500.0,0.00019452,3]
[347555282,1735915843766,-470.57339483,0.00019452,3]
[347555284,1735915843776,-500.0,0.00019452,3]
[347555286,1735915843786,-500.0,0.00019452,3]
[347555288,1735915843795,-500.0,0.00019452,3]
[347555290,1735915843804,-500.0,0.00019452,3]
[347555292,1735915843813,-500.0,0.00019452,3]
[347555294,1735915843822,-500.0,0.00019452,3]
[347555296,1735915843832,-500.0,0.00019452,3]
[347555298,1735915843841,-500.0,0.00019452,3]
[347555300,1735915843852,-500.0,0.00019452,3]
[347555302,1735915843861,-500.0,0.00019452,3]
[347555304,1735915843871,-593.67,0.00019452,3]
[347555306,1735915843880,-500.0,0.00019452,3]
[347555308,1735915843890,-500.0,0.00019452,3]
[347555310,1735915843899,-500.0,0.00019452,3]
[347555312,1735915843908,-500.0,0.00019452,3]
[347555314,1735915843918,-500.0,0.00019452,3]
[347555316,1735915843927,-500.0,0.00019452,3]
[347555318,1735915843937,-1197.32,0.00019452,3]
[347555319,1735915843946,-609.30933581,0.00019452,3]
[347555321,1735915843956,-500.0,0.00019452,3]
[347555323,1735915843968,-500.0,0.00019452,3]
[347555325,1735915843979,-500.0,0.00019452,3]
[347555327,1735915843988,-500.0,0.00019452,3]
[347555329,1735915843998,-500.0,0.00019452,3]
[347555331,1735915844009,-500.0,0.00019452,3]
[347555333,1735915844019,-500.0,0.00019452,3]
[347555335,1735915844027,-500.0,0.00019452,3]
[347555337,1735915844036,-500.0,0.00019452,3]
[347555338,1735915844045,-500.0,0.00019452,3]
[347555340,1735915844054,-621.94,0.00019452,3]
[347555342,1735915844064,-500.0,0.00019452,3]
[347555344,1735915844074,-535.7,0.00019452,3]
[347555346,1735915844084,-500.0,0.00019452,3]
[347555348,1735915844096,-631.20573567,0.00019452,3]
[347555350,1735915844105,-777.65,0.00019452,3]
[347555352,1735915844115,-500.0,0.00019452,3]
[347555354,1735915844125,-500.0,0.00019452,3]
[347555356,1735915844135,-500.0,0.00019452,3]
[347555358,1735915844145,-720.3,0.00019452,3]
[347555360,1735915844154,-534.27570609,0.00019452,3]
[347555362,1735915844166,-500.0,0.00019452,3]
[347555364,1735915844175,-500.0,0.00019452,3]
[347555366,1735915844184,-645.75,0.00019452,3]
[347555368,1735915844193,-525.72968234,0.00019452,3]
[347555370,1735915844203,-361.12902243,0.00019452,3]
[347555372,1735915844213,-461.38986322,0.00019452,3]
[347555374,1735915844223,-500.0,0.00019452,3]
[347555375,1735915844232,-500.0,0.00019452,3]
[347555377,1735915844242,-1201.49,0.00019452,3]
[347555379,1735915844251,-500.0,0.00019452,3]
[347555381,1735915844260,-500.0,0.00019452,3]
[347555383,1735915844270,-500.0,0.00019452,3]
[347555385,1735915844279,-500.0,0.00019452,3]
[347555387,1735915844289,-588.38968201,0.00019452,3]
[347555389,1735915844299,-500.0,0.00019452,3]
[347555391,1735915844308,-500.0,0.00019452,3]
[347555393,1735915844317,-500.0,0.00019452,3]
[347555395,1735915844327,-1132.11,0.00019452,3]
[347555397,1735915844337,-500.0,0.00019452,3]
[347555399,1735915844346,-500.0,0.00019452,3]
[347555401,1735915844356,-500.0,0.00019452,3]
[347555403,1735915844366,-500.0,0.00019452,3]
[347555405,1735915844375,-500.0,0.00019452,3]
[347555406,1735915844384,-1359.76,0.00019452,3]
[347555408,1735915844394,-543.8,0.00019452,3]
[347555410,1735915844403,-500.0,0.00019452,3]
[347555412,1735915844413,-500.0,0.00019452,3]
[347555414,1735915844422,-500.0,0.00019452,3]
[347555416,1735915844432,-646.49,0.00019452,3]
[347555418,1735915844442,-500.0,0.00019452,3]
[347555420,1735915844451,-185.55,0.00019452,3]
[347555422,1735915844463,-500.0,0.00019452,3]
[347555424,1735915844472,-500.0,0.00019452,3]
[347555425,1735915844482,-500.0,0.00019452,3]
[347555426,1735915844490,-500.0,0.00019452,3]
[347555427,1735915844499,-500.0,0.00019452,3]
[347555428,1735915844508,-500.0,0.00019452,3]
[347555429,1735915844517,-654.22,0.00019452,3]
[347555430,1735915844526,-1308.75,0.00019452,3]
[347555431,1735915844534,-500.0,0.00019452,3]
[347555432,1735915844543,-500.0,0.00019452,3]
[347555433,1735915844552,-580.75,0.00019452,3]
[347555434,1735915844561,-500.0,0.00019452,3]
[347555435,1735915844572,-500.0,0.00019452,3]
[347555436,1735915844582,-500.0,0.00019452,3]
[347555437,1735915844593,-500.0,0.00019452,3]
[347555438,1735915844602,-500.0,0.00019452,3]
[347555439,1735915844611,-500.0,0.00019452,3]
[347555440,1735915844622,-500.0,0.00019452,3]
[347555441,1735915844632,-509.64153171,0.00019452,3]
[347555442,1735915844641,-3366.88,0.00019452,3]
[347555443,1735915844651,-500.0,0.00019452,3]
[347555444,1735915844660,-500.0,0.00019452,3]
[347555445,1735915844670,-500.0,0.00019452,3]
[347555446,1735915844679,-504.73887888,0.00019452,3]
[347555447,1735915844689,-500.0,0.00019452,3]
[347555448,1735915844698,-789.41,0.00019452,3]
[347555449,1735915844707,-500.0,0.00019452,3]
[347555450,1735915844718,-626.48441795,0.00019452,3]
[347555451,1735915844727,-179.83818306,0.00019452,3]
[347555452,1735915844736,-716.35,0.00019452,3]
[347555453,1735915844746,-500.0,0.00019452,3]
[347555454,1735915844755,-500.0,0.00019452,3]
[347555456,1735915844764,-647.19,0.00019452,3]
[347555457,1735915844773,-500.0,0.00019452,3]
[347555459,1735915844783,-500.0,0.00019452,3]
[347555461,1735915844792,-500.0,0.00019452,3]
[347555462,1735915844800,-500.0,0.00019452,3]
[347555464,1735915844810,-500.0,0.00019452,3]
[347555466,1735915844819,-821.01,0.00019452,3]
[347555469,1735915844828,-1011.49,0.00019452,3]
[347555471,1735915844838,-500.0,0.00019452,3]
[347555473,1735915844848,-1753.55,0.00019452,3]
[347555475,1735915844857,-500.0,0.00019452,3]
[347555477,1735915844866,-601.51,0.00019452,3]
[347555479,1735915844876,-500.0,0.00019452,3]
[347555481,1735915844885,-500.0,0.00019452,3]
[347555483,1735915844895,-2773.03,0.00019452,3]
[347555484,1735915844904,-777.75,0.00019452,3]
[347555487,1735915844913,-500.0,0.00019452,3]
[347555488,1735915844923,-500.88464733,0.00019452,3]
[347555490,1735915844932,-572.91,0.00019452,3]
[347555492,1735915844941,-739.31,0.00019452,3]
[347555494,1735915844950,-500.0,0.00019452,3]
[347555496,1735915844960,-500.0,0.00019452,3]
[347555498,1735915844970,-500.0,0.00019452,3]
[347555500,1735915844979,-359.52415553,0.00019452,3]
[347555502,1735915844989,-500.0,0.00019452,3]
[347555504,1735915844998,-500.0,0.00019452,3]
[347555506,1735915845007,-500.0,0.00019452,3]
[347555508,1735915845017,-180.61,0.00019452,3]
[347555510,1735915845026,-21429.29647309,0.00019452,3]
[347555525,1735915845168,-18991.54352691,0.00019452,3]
[347555527,1735915845178,-500.0,0.00019452,3]
[347555529,1735915845188,-500.0,0.00019452,3]
[347555531,1735915845197,-1307.86,0.00019452,3]
[347555533,1735915845207,-500.0,0.00019452,3]
[347555535,1735915845217,-1544.34,0.00019452,3]
[347555537,1735915845226,-500.0,0.00019452,3]
[347555539,1735915845236,-500.0,0.00019452,3]
[347555541,1735915845246,-359.69034323,0.00019452,3]
[347555543,1735915845255,-500.0,0.00019452,3]
[347555545,1735915845265,-1605.51,0.00019452,3]
[347555547,1735915845274,-500.0,0.00019452,3]
[347555549,1735915845283,-553.12,0.00019452,3]
[347555551,1735915845293,-334.35,0.00019452,3]
[347555553,1735915845303,-3104.35,0.00019452,3]
[347555555,1735915845312,-500.0,0.00019452,3]
[347555557,1735915845322,-545.32,0.00019452,3]
[347555559,1735915845331,-556.66,0.00019452,3]
[347555561,1735915845341,-500.0,0.00019452,3]
[347555564,1735915845362,-500.0,0.00019452,3]
[347555566,1735915845372,-500.0,0.00019452,3]
[347555568,1735915845382,-500.0,0.00019452,3]
[347555571,1735915845392,-500.0,0.00019452,3]
[347555572,1735915845403,-500.0,0.00019452,3]
[347555575,1735915845413,-500.0,0.00019452,3]
[347555577,1735915845423,-4628.27,0.00019452,3]
[347555579,1735915845433,-575.11111302,0.00019452,3]
[347555580,1735915845443,-500.0,0.00019452,3]
[347555582,1735915845452,-500.0,0.00019452,3]
[347555584,1735915845463,-1177.5,0.00019452,3]
[347555586,1735915845473,-500.0,0.00019452,3]
[347555588,1735915845483,-1258.26,0.00019452,3]
[347555590,1735915845492,-1340.64,0.00019452,2]
[347555593,1735915845503,-500.0,0.00019452,3]
[347555595,1735915845514,-500.0,0.00019452,3]
[347555597,1735915845523,-500.0,0.00019452,3]
[347555599,1735915845533,-500.0,0.00019452,3]
[347555601,1735915845542,-500.0,0.00019452,3]
[347555603,1735915845552,-500.0,0.00019452,3]
[347555605,1735915845562,-500.0,0.00019452,3]
[347555607,1735915845572,-338.30445383,0.00019452,3]
[347555608,1735915845582,-500.0,0.00019452,3]
[347555610,1735915845593,-500.0,0.00019452,3]
[347555612,1735915845602,-500.0,0.00019452,3]
[347555614,1735915845612,-500.0,0.00019452,3]
[347555616,1735915845622,-812.27,0.00019452,3]
[347555618,1735915845631,-500.0,0.00019452,3]
[347555621,1735915845641,-384.4405875,0.00019452,3]
[347555622,1735915845651,-5111.34,0.00019452,3]
[347555624,1735915845660,-1131.3,0.00019452,3]
[347555627,1735915845671,-500.0,0.00019452,3]
[347555629,1735915845681,-2965.34,0.00019452,3]
[347555631,1735915845690,-500.0,0.00019452,3]
[347555633,1735915845700,-500.0,0.00019452,3]
[347555635,1735915845712,-500.0,0.00019452,3]
[347555637,1735915845722,-500.0,0.00019452,3]
[347555639,1735915845731,-271.2963744,0.00019452,3]
[347555640,1735915845741,-500.0,0.00019452,3]
[347555643,1735915845751,-2581.28,0.00019452,3]
[347555645,1735915845761,-500.0,0.00019452,3]
[347555646,1735915845771,-500.0,0.00019452,3]
[347555648,1735915845781,-500.0,0.00019452,2]
[347555651,1735915845790,-1375.81,0.00019452,3]
[347555653,1735915845801,-666.78,0.00019452,3]
[347555655,1735915845810,-500.0,0.00019452,3]
[347555657,1735915845820,-500.0,0.00019452,3]
[347555675,1735915845986,-1116.34,0.00019452,3]
[347555677,1735915845996,-607.92,0.00019452,3]
[347555678,1735915846006,-500.0,0.00019452,3]
[347555680,1735915846015,-500.0,0.00019452,3]
[347555682,1735915846026,-9652.64,0.00019452,3]
[347555685,1735915846036,-1621.74,0.00019452,3]
[347555687,1735915846046,-502.48133731,0.00019452,3]
[347555689,1735915846055,-500.0,0.00019452,3]
[347555691,1735915846064,-500.0,0.00019452,3]
[347555693,1735915846075,-1236.54,0.00019452,3]
[347555695,1735915846085,-500.0,0.00019452,3]
[347555697,1735915846099,-502.7,0.00019452,3]
[347555699,1735915846110,-500.0,0.00019452,3]
[347555702,1735915846120,-171.63049437,0.00019473,2]
[347555705,1735915846131,-500.0,0.00019473,2]
[347555708,1735915846142,-201.08554593,0.00019473,2]
[347555711,1735915846156,-500.0,0.00019473,2]
[347555712,1735915846167,-400.04453957,0.00019473,2]
[347555714,1735915846177,-500.0,0.00019473,2]
[347555717,1735915846188,-500.0,0.00019473,2]
[347555719,1735915846198,-302.66710251,0.0001957,2]
[347555720,1735915846212,-237.607132,0.000196,2]
[347555721,1735915846222,-237.607132,0.000196,2]
[347555722,1735915846232,-151.0,0.000196,2]
[347555723,1735915846242,-237.607132,0.000197,2]
[347555724,1735915846252,-237.607132,0.000197,2]
[347555725,1735915846262,-237.607132,0.00019726,2]
[347555726,1735915846272,-237.607132,0.00019726,2]
[347555727,1735915846283,-237.607132,0.00019726,2]
[347555728,1735915846294,-237.607132,0.00019726,2]
[347555729,1735915846304,-500.0,0.00019726,3]
[347555730,1735915846314,-500.0,0.00019726,3]
[347555731,1735915846325,-500.0,0.00019726,3]
[347555732,1735915846335,-500.0,0.00019726,3]
[347555733,1735915846346,-500.0,0.00019726,3]
[347555734,1735915846356,-371.28858741,0.00019726,3]
[347555735,1735915846366,-7700.63,0.00019726,3]
[347555736,1735915846377,-500.0,0.00019726,3]
[347555737,1735915846387,-393.57586248,0.00019726,3]
[347555738,1735915846397,-500.0,0.00019726,3]
[347555739,1735915846408,-500.0,0.00019726,3]
[347555740,1735915846418,-500.0,0.00019726,3]
[347555741,1735915846429,-500.0,0.00019726,3]
[347555742,1735915846443,-500.0,0.00019726,3]
[347555743,1735915846453,-500.0,0.00019726,3]
[347555744,1735915846466,-166.37532444,0.00019726,3]
[347555745,1735915846481,-333.62467556,0.00019726,3]
[347555746,1735915846491,-500.0,0.00019726,3]
[347555747,1735915846501,-500.0,0.00019726,3]
[347555748,1735915846510,-196.15093824,0.00019726,3]
[347555759,1735915846785,-1084.79,0.00019178,2]
[347555761,1735915846795,-414.17189707,0.00019452,3]
[347555763,1735915846807,-670.61810293,0.00019452,3]
[347555765,1735915846817,-303.84906176,0.00019726,3]
[347555767,1735915846826,-500.0,0.00019726,3]
[347555769,1735915846836,-500.0,0.00019726,3]
[347555771,1735915846846,-593.67,0.00019726,3]
[347555773,1735915846856,-503.8261317,0.00019726,3]
[347555775,1735915846865,-500.0,0.00019726,3]
[347555777,1735915846876,-500.0,0.00019726,3]
[347555779,1735915846886,-254.15798061,0.00019726,3]
[347555808,1735915847186,-257.95834297,0.00018986,2]
[347557819,1735915872776,602.0,0.00025,120]
[347557820,1735915912525,400.0,0.00025,120]
[347557825,1735916121399,150.55,0.00013699,2]
[347557826,1735916122866,150.55,0.00013699,2]
[347557827,1735916123450,150.57583479,0.00013699,2]
[347557834,1735916572395,228.902831,0.00013973,2]